bitfinex/quotes_SOLUSD_20250904
["timestamp","ask_amount","ask_price","bid_price","bid_amount"]
[1756968050643,0.06,207.34,207.33,19.33333265]
[1756968056521,0.06,207.34,207.33,14.30559401]
[1756968056703,0.06,207.34,207.32,13.62559401]
[1756968057515,0.06,207.34,207.32,14.33559401]
[1756968057718,0.7,207.33,207.32,0.03]
[1756968061120,10.5509673,207.33,207.32,0.03]
[1756968061909,5.52322866,207.33,207.32,0.03]
[1756968062109,10.5509673,207.33,207.32,0.03]
[1756968062311,20.72644458,207.33,207.32,0.03]
[1756968062511,10.87547728,207.33,207.32,0.03]
[1756968062727,10.17547728,207.33,207.32,0.03]
[1756968063237,0.06,207.34,207.32,0.03]
[1756968063434,0.76,207.34,207.32,0.03]
[1756968064331,0.06,207.34,207.33,19.33333265]
[1756968064725,0.06,207.34,207.33,18.90765579]
[1756968064908,0.06,207.34,207.33,19.61765579]
[1756968066232,0.06,207.34,207.33,24.44088445]
[1756968067527,0.06,207.34,207.33,19.61765579]
[1756968068125,0.06,207.37,207.36,39.59559401]
[1756968068435,0.06,207.37,207.36,44.90765579]
[1756968068633,0.06,207.37,207.36,46.83969627]
[1756968068818,0.06,207.37,207.36,47.54969627]
[1756968069623,0.06,207.37,207.36,52.37222713]
[1756968071540,0.06,207.37,207.36,50.56107872]
[1756968072622,0.06,207.37,207.36,87.80107872]
[1756968074542,0.06,207.37,207.36,85.86903824]
[1756968079331,0.06,207.37,207.36,85.15903824]
[1756968079843,0.06,207.37,207.36,85.84903824]
[1756968083838,0.72,207.37,207.36,13.73775558]
[1756968084038,0.72,207.37,207.32,0.03]
[1756968084237,3.93659023,207.37,207.33,50.83559401]
[1756968084531,0.66,207.36,207.33,50.83559401]
[1756968084737,0.66,207.35,207.33,50.83559401]
[1756968085344,0.66,207.34,207.33,13.59559401]
[1756968085534,0.66,207.34,207.33,50.83559401]
[1756968089359,0.66,207.36,207.33,50.83559401]
[1756968090254,3.27659023,207.37,207.33,50.83559401]
[1756968090458,0.66,207.36,207.33,50.83559401]
[1756968093351,0.66,207.36,207.33,55.65872594]
[1756968093758,0.06,207.37,207.33,56.34872594]
[1756968093979,0.06,207.37,207.35,16.81218424]
[1756968094177,0.06,207.37,207.36,13.87991715]
[1756968094489,0.06,207.37,207.36,17.78650738]
[1756968094873,0.06,207.37,207.36,22.60903824]
[1756968095990,0.06,207.37,207.36,19.39244801]
[1756968096181,0.06,207.37,207.36,22.60903824]
[1756968099076,0.06,207.37,207.36,19.39244801]
[1756968099267,0.06,207.37,207.36,22.60903824]
[1756968099684,0.06,207.37,207.36,59.84903824]
[1756968099889,0.06,207.37,207.36,59.15903824]
[1756968101080,0.06,207.37,207.36,55.94244801]
[1756968101291,0.06,207.37,207.36,59.15903824]
[1756968103592,0.72,207.37,207.33,0.03]
[1756968103790,0.72,207.37,207.34,13.59559401]
[1756968103994,0.66,207.36,207.34,13.59559401]
[1756968104297,0.66,207.35,207.34,13.59559401]
[1756968105272,0.66,207.35,207.33,13.62559401]
[1756968105593,0.66,207.34,207.33,13.62559401]
[1756968105978,0.66,207.34,207.33,0.03]
[1756968106578,3.21659023,207.36,207.33,0.03]
[1756968106579,3.21659023,207.36,207.33,13.62559401]
[1756968106780,0.66,207.35,207.33,13.62559401]
[1756968108471,3.21659023,207.36,207.33,13.62559401]
[1756968108675,0.66,207.35,207.33,13.62559401]
[1756968108999,0.66,207.34,207.33,13.62559401]
[1756968109573,0.66,207.34,207.33,0.03]
[1756968112399,3.87659023,207.34,207.33,0.03]
[1756968113102,8.69958627,207.34,207.33,0.03]
[1756968113395,21.56183002,207.34,207.33,0.03]
[1756968113978,16.73883398,207.34,207.33,0.03]
[1756968114187,3.87659023,207.34,207.33,0.03]
[1756968117478,0.66,207.34,207.33,0.03]
[1756968118492,13.62559401,207.35,207.33,0.03]
[1756968118878,17.50218424,207.35,207.33,0.03]
[1756968119102,0.66,207.34,207.33,0.03]
[1756968119294,3.87659023,207.34,207.33,0.03]
[1756968119800,8.69958627,207.34,207.33,0.03]
[1756968120304,10.63284066,207.34,207.33,0.03]
[1756968120920,5.80984462,207.34,207.33,0.03]
[1756968121087,1.93325439,207.34,207.33,0.03]
[1756968122313,2.59325439,207.34,207.33,0.03]
[1756968125124,5.80984462,207.34,207.33,0.03]
[1756968125928,2.59325439,207.34,207.33,0.03]
[1756968127420,1.93325439,207.34,207.33,0.74]
[1756968127826,0.06,207.37,207.33,3.95659023]
[1756968128034,0.72,207.37,207.34,3.21659023]
[1756968128219,14.34559401,207.37,207.33,3.95659023]
[1756968129920,18.50789597,207.37,207.33,3.95659023]
[1756968130231,0.66,207.36,207.33,3.95659023]
[1756968130929,13.59559401,207.36,207.33,3.95659023]
[1756968131223,14.25559401,207.36,207.33,3.95659023]
[1756968131396,14.25559401,207.36,207.33,0.74]
[1756968132420,0.7,207.35,207.33,0.03]
[1756968133322,18.41820568,207.36,207.33,0.03]
[1756968133622,0.7,207.35,207.33,0.03]
[1756968135431,18.47820568,207.36,207.33,0.03]
[1756968135724,19.17820568,207.36,207.33,0.03]
[1756968137627,19.17820568,207.36,207.33,0.75]
[1756968137825,19.17820568,207.36,207.33,0.03]
[1756968139738,0.7,207.35,207.33,0.03]
[1756968144740,14.35559401,207.36,207.33,0.03]
[1756968145038,13.65559401,207.36,207.33,0.03]
[1756968145240,0.7,207.35,207.33,0.03]
[1756968147826,0.7,207.34,207.33,0.03]
[1756968150247,5.52283112,207.35,207.33,0.03]
[1756968150440,0.7,207.34,207.33,0.03]
[1756968151125,15.25800653,207.36,207.33,0.03]
[1756968151431,15.25800652,207.36,207.33,0.03]
[1756968152656,0.06,207.35,207.33,0.03]
[1756968152832,0.76,207.35,207.33,0.03]
[1756968153970,0.06,207.35,207.33,0.03]
[1756968154163,0.7,207.34,207.33,0.03]
[1756968154343,0.06,207.35,207.33,0.03]
[1756968154542,0.06,207.35,207.34,18.62654856]
[1756968154754,0.06,207.35,207.34,19.34654856]
[1756968154962,14.37559401,207.35,207.34,19.34654856]
[1756968155147,0.06,207.35,207.34,24.1695446]
[1756968156371,0.06,207.35,207.34,10.57395059]
[1756968156554,0.06,207.35,207.34,10.85827373]
[1756968159442,0.06,207.35,207.34,5.82731918]
[1756968159643,0.06,207.35,207.34,10.85827373]
[1756968160065,0.06,207.35,207.34,6.03527769]
[1756968160583,0.06,207.35,207.33,0.03]
[1756968160756,0.76,207.35,207.34,5.03095455]
[1756968160964,0.06,207.35,207.34,5.03095455]
[1756968161969,0.06,207.35,207.34,5.75095455]
[1756968163042,0.06,207.35,207.34,5.03095455]
[1756968164047,0.06,207.35,207.34,5.68095455]
[1756968169397,0.06,207.35,207.34,10.50395059]
[1756968169575,0.06,207.35,207.34,24.38386774]
[1756968171089,0.06,207.35,207.34,66.61482229]
[1756968171795,0.06,207.35,207.34,61.58386774]
[1756968172295,0.06,207.35,207.34,24.38386774]
[1756968174186,0.06,207.35,207.34,18.70291319]
[1756968174389,0.06,207.35,207.34,23.73386774]
[1756968174580,0.77,207.35,207.34,18.62654856]
[1756968176599,0.06,207.35,207.34,18.62654856]
[1756968181082,0.77,207.35,207.34,18.62654856]
[1756968181282,0.06,207.35,207.34,18.62654856]
[1756968182899,0.06,207.35,207.34,24.0995446]
[1756968183108,0.06,207.35,207.34,24.38386774]
[1756968183293,0.06,207.35,207.34,29.41482229]
[1756968183984,0.06,207.35,207.34,24.38386774]
[1756968185607,0.06,207.35,207.34,24.41386774]
[1756968186709,0.06,207.35,207.34,61.61386774]
[1756968187385,0.06,207.35,207.34,13.90991715]
[1756968187696,0.06,207.35,207.34,18.65654856]
[1756968189718,0.06,207.35,207.34,13.62559401]
[1756968189889,0.06,207.35,207.34,18.65654856]
[1756968191590,0.06,207.35,207.34,13.62559401]
[1756968191992,0.77,207.35,207.34,16.84437256]
[1756968192993,0.73,207.35,207.34,16.84437256]
[1756968193809,0.06,207.35,207.34,16.84437256]
[1756968194693,0.06,207.35,207.34,0.03]
[1756968194899,0.73,207.35,207.34,3.24877855]
[1756968195119,2.66288071,207.35,207.34,0.03]
[1756968195429,2.66288071,207.35,207.34,3.24877855]
[1756968196095,2.66288071,207.35,207.34,0.03]
[1756968196696,1.99288071,207.35,207.34,3.24877855]
[1756968196899,0.06,207.35,207.34,16.84437256]
[1756968197114,0.06,207.35,207.34,21.6673686]
[1756968197316,0.06,207.35,207.34,22.3373686]
[1756968197816,0.06,207.35,207.34,21.6673686]
[1756968198221,0.06,207.35,207.34,13.62559401]
[1756968198610,0.73,207.35,207.34,13.62559401]
[1756968202313,0.73,207.35,207.34,0.03]
[1756968203598,3.97877855,207.35,207.34,0.03]
[1756968204401,0.06,207.35,207.34,16.84437256]
[1756968205013,0.06,207.35,207.34,17.51437256]
[1756968205232,0.06,207.35,207.34,16.84437256]
[1756968205718,0.73,207.35,207.34,0.03]
[1756968208428,0.73,207.35,207.34,3.24877855]
[1756968208611,0.73,207.35,207.34,0.03]
[1756968210837,0.06,207.35,207.34,0.03]
[1756968214239,0.06,207.35,207.34,0.7]
[1756968214445,0.06,207.35,207.34,3.24877855]
[1756968214632,0.06,207.35,207.34,0.03]
[1756968214945,0.73,207.35,207.34,0.03]
[1756968215535,0.06,207.35,207.34,0.03]
[1756968220040,0.73,207.35,207.34,0.03]
[1756968220541,0.06,207.35,207.34,0.03]
[1756968221935,0.77,207.35,207.34,0.03]
[1756968222123,0.06,207.35,207.34,0.03]
[1756968223125,0.77,207.35,207.34,0.03]
[1756968223543,3.30877855,207.35,207.34,0.03]
[1756968223844,0.77,207.35,207.34,0.03]
[1756968225451,2.70306754,207.35,207.34,0.03]
[1756968226726,0.77,207.35,207.34,0.03]
[1756968229351,0.06,207.35,207.34,0.69]
[1756968229555,0.06,207.35,207.34,17.50437256]
[1756968230231,0.06,207.35,207.34,0.03]
[1756968236457,0.06,207.35,207.34,14.28559401]
[1756968237854,0.06,207.35,207.34,17.50437256]
[1756968238956,0.06,207.35,207.34,22.3273686]
[1756968239463,0.06,207.35,207.34,14.28559401]
[1756968239661,0.06,207.35,207.34,17.50437256]
[1756968239840,0.06,207.35,207.34,14.28559401]
[1756968241865,0.06,207.35,207.34,0.03]
[1756968246766,0.77,207.35,207.34,0.03]
[1756968248838,5.6523372,207.35,207.34,0.03]
[1756968252866,4.9423372,207.35,207.34,0.72]
[1756968253074,4.9423372,207.35,207.34,3.93877855]
[1756968253360,0.06,207.35,207.34,3.93877855]
[1756968253665,0.06,207.35,207.34,5.749778]
[1756968253863,0.06,207.35,207.34,19.34537201]
[1756968256861,0.06,207.35,207.34,14.31559401]
[1756968259190,0.06,207.35,207.34,24.45269119]
[1756968259386,0.06,207.35,207.34,19.42291319]
[1756968259690,0.06,207.35,207.34,24.45269119]
[1756968261792,0.06,207.35,207.34,14.31559401]
[1756968261974,0.06,207.35,207.34,19.34537201]
[1756968264994,0.06,207.35,207.34,24.45269119]
[1756968275706,0.06,207.35,207.34,19.42291319]
[1756968275908,0.06,207.35,207.34,24.45269119]
[1756968277590,0.06,207.35,207.34,61.59269119]
[1756968278497,0.06,207.35,207.34,60.90269119]
[1756968278800,0.06,207.35,207.34,61.59269119]
[1756968278995,0.06,207.35,207.34,18.93969515]
[1756968279193,0.72,207.35,207.34,55.79537201]
[1756968280003,0.72,207.35,207.34,18.65537201]
[1756968282218,0.72,207.35,207.34,13.62559401]
[1756968283114,0.06,207.35,207.34,13.62559401]
[1756968283311,0.78,207.35,207.34,13.62559401]
[1756968283896,0.06,207.35,207.34,18.65537201]
[1756968286907,0.78,207.35,207.34,13.62559401]
[1756968287108,0.06,207.35,207.34,18.65537201]
[1756968287898,0.78,207.35,207.34,13.62559401]
[1756968288401,0.78,207.35,207.34,0.03]
[1756968299721,0.06,207.35,207.34,0.03]
[1756968299922,0.78,207.35,207.34,0.03]
[1756968300627,0.06,207.35,207.34,13.62559401]
[1756968301324,0.78,207.35,207.34,0.03]
[1756968305630,0.06,207.35,207.34,0.03]
[1756968309541,0.06,207.35,207.34,0.71]
[1756968309927,0.78,207.35,207.34,0.03]
[1756968310638,0.06,207.35,207.34,0.03]
[1756968313044,26.0,207.33,207.32,0.03]
[1756968313242,31.709778,207.33,207.31,0.03]
[1756968313449,3.22315226,207.32,207.31,0.03]
[1756968313826,3.90315226,207.32,207.31,0.03]
[1756968314742,5.83687395,207.32,207.31,0.03]
[1756968315140,5.83687395,207.32,207.3,0.03]
[1756968315141,10.66033526,207.32,207.3,0.03]
[1756968315356,3.22315226,207.31,207.3,0.03]
[1756968315845,3.90315226,207.31,207.3,0.03]
[1756968316428,8.72684624,207.31,207.3,0.03]
[1756968317343,10.66075491,207.31,207.3,0.03]
[1756968317930,10.66075491,207.31,207.22,0.03]
[1756968318131,3.22315226,207.3,207.22,0.03]
[1756968318553,8.72707893,207.3,207.22,0.03]
[1756968319751,29.22315226,207.28,207.25,0.03]
[1756968319956,66.34315226,207.28,207.25,0.03]
[1756968320159,67.02315226,207.28,207.25,0.03]
[1756968320538,68.957435,207.28,207.25,0.03]
[1756968321860,73.78182712,207.28,207.25,0.03]
[1756968332739,33.43867486,207.28,207.25,0.03]
[1756968332941,47.12182712,207.28,207.27,0.73]
[1756968333767,6.75867486,207.28,207.27,0.73]
[1756968334063,5.157435,207.28,207.27,0.73]
[1756968334266,42.297435,207.28,207.27,0.73]
[1756968336456,5.157435,207.28,207.27,0.73]
[1756968336763,1.93428274,207.28,207.27,14.32559401]
[1756968337257,3.22315226,207.31,207.27,14.32559401]
[1756968337438,0.06,207.28,207.27,13.62559401]
[1756968338042,0.06,207.28,207.27,14.32559401]
[1756968345163,0.06,207.28,207.27,22.37337115]
[1756968345569,0.06,207.28,207.27,19.15021889]
[1756968345763,0.06,207.28,207.27,22.37337115]
[1756968346269,0.06,207.28,207.27,14.32559401]
[1756968352571,0.06,207.28,207.27,22.37337115]
[1756968354270,0.06,207.28,207.27,19.15021889]
[1756968356585,0.06,207.28,207.27,22.65769429]
[1756968356766,0.06,207.28,207.27,45.43454203]
[1756968357078,0.06,207.28,207.27,48.65769429]
[1756968357464,0.06,207.28,207.27,85.77769429]
[1756968358073,0.06,207.28,207.27,82.55454203]
[1756968358278,0.06,207.28,207.27,85.77769429]
[1756968360475,0.06,207.28,207.27,48.65769429]
[1756968360788,0.06,207.28,207.27,85.77769429]
[1756968362085,0.06,207.28,207.27,85.75769429]
[1756968368106,0.06,207.28,207.27,47.95769429]
[1756968368397,0.73,207.28,207.27,50.72559401]
[1756968368803,0.73,207.28,207.27,13.62559401]
[1756968369308,3.95315226,207.28,207.27,0.03]
[1756968370102,8.77754438,207.28,207.27,0.03]
[1756968373193,45.87754438,207.28,207.27,0.03]
[1756968373396,26.0,207.26,207.25,0.03]
[1756968373594,31.03897511,207.26,207.25,0.03]
[1756968373798,31.73897511,207.26,207.25,0.03]
[1756968374298,36.56383277,207.26,207.25,0.03]
[1756968379310,53.66495204,207.26,207.22,0.03]
[1756968379494,26.0,207.2,207.17,0.03]
[1756968379695,68.15897511,207.2,207.17,0.03]
[1756968379910,68.85897511,207.2,207.17,0.03]
[1756968380211,70.79400643,207.2,207.17,0.03]
[1756968381294,75.62026125,207.2,207.17,0.03]
[1756968383096,5.03897511,207.18,207.17,0.03]
[1756968383316,9.86569583,207.18,207.17,0.03]
[1756968383494,10.56569583,207.18,207.17,0.03]
[1756968384391,12.50100802,207.18,207.17,0.03]
[1756968385792,49.62100802,207.18,207.17,0.03]
[1756968386123,26.0,207.15,207.13,0.1]
[1756968386331,42.15897511,207.14,207.13,0.1]
[1756968386624,47.89795022,207.14,207.13,0.1]
[1756968386814,49.83335605,207.14,207.13,0.1]
[1756968387015,12.71335605,207.14,207.13,0.1]
[1756968387208,1.93540583,207.14,207.13,0.1]
[1756968387416,6.97438094,207.14,207.13,0.1]
[1756968387618,11.80203373,207.14,207.13,0.1]
[1756968387925,48.92203373,207.14,207.13,0.1]
[1756968388298,11.80203373,207.14,207.13,0.1]
[1756968388738,48.92203373,207.14,207.13,0.1]
[1756968389024,11.80203373,207.14,207.13,0.1]
[1756968389238,48.92203373,207.14,207.13,0.1]
[1756968389446,11.80203373,207.14,207.13,0.1]
[1756968389746,48.94203373,207.14,207.13,0.1]
[1756968390820,54.68100884,207.14,207.13,0.1]
[1756968392119,31.03897511,207.14,207.13,0.78]
[1756968392319,68.17897511,207.14,207.13,0.78]
[1756968392520,68.17897511,207.14,207.13,0.1]
[1756968393346,73.91795022,207.14,207.13,0.1]
[1756968393734,68.87897511,207.14,207.13,0.1]
[1756968394051,73.7066279,207.14,207.13,0.1]
[1756968395017,75.64203373,207.14,207.13,0.1]
[1756968395218,80.68100884,207.14,207.13,0.1]
[1756968396950,80.96533198,207.14,207.12,0.1]
[1756968397247,44.18738176,207.14,207.12,0.1]
[1756968397422,15.60583608,207.13,207.12,0.1]
[1756968398231,9.86686097,207.13,207.12,0.1]
[1756968398429,47.00686097,207.13,207.12,0.78]
[1756968399350,73.00686097,207.13,207.12,0.78]
[1756968399553,73.00686097,207.13,207.12,0.1]
[1756968399744,67.96788586,207.13,207.12,0.1]
[1756968400045,73.00686097,207.13,207.12,0.78]
[1756968400260,73.00686097,207.13,207.12,0.1]
[1756968401129,73.00686097,207.13,207.12,0.78]
[1756968401348,68.17897511,207.13,207.12,0.78]
[1756968402132,67.96788586,207.13,207.12,0.78]
[1756968402452,73.00686097,207.13,207.12,0.76]
[1756968403133,31.03897511,207.13,207.12,0.76]
[1756968403326,68.17897511,207.13,207.12,0.76]
[1756968405359,42.17897511,207.13,207.12,0.76]
[1756968405738,37.14,207.13,207.12,0.76]
[1756968405931,42.17897511,207.13,207.12,0.76]
[1756968407847,5.03897511,207.13,207.12,0.76]
[1756968408055,42.17897511,207.13,207.12,0.76]
[1756968408758,37.14,207.13,207.12,0.76]
[1756968408963,42.17897511,207.14,207.12,0.76]
[1756968409267,5.03897511,207.13,207.12,0.1]
[1756968410465,5.03897511,207.13,207.12,0.76]
[1756968413167,42.17897511,207.14,207.12,0.76]
[1756968413370,4.82672168,207.18,207.12,0.76]
[1756968413545,68.17897511,207.17,207.12,0.76]
[1756968413747,5.03897511,207.14,207.12,0.76]
[1756968414766,5.03897511,207.15,207.12,0.76]
[1756968415369,5.03897511,207.16,207.12,0.76]
[1756968415683,5.03897511,207.15,207.12,0.76]
[1756968415854,5.03897511,207.15,207.12,0.1]
[1756968416055,5.03897511,207.15,207.13,0.66]
[1756968416381,5.03897511,207.14,207.13,0.66]
[1756968417388,37.14,207.17,207.14,0.66]
[1756968417559,42.17897511,207.17,207.14,0.66]
[1756968418158,42.17897511,207.17,207.15,0.66]
[1756968418378,4.8260124,207.22,207.16,0.66]
[1756968418573,5.03897511,207.21,207.16,5.69897511]
[1756968418774,42.17897511,207.21,207.17,0.66]
[1756968419372,42.17897511,207.21,207.17,5.48684071]
[1756968419576,42.17897511,207.21,207.18,0.66]
[1756968419762,42.17897511,207.21,207.19,0.66]
[1756968421453,5.03897511,207.2,207.16,0.66]
[1756968421656,5.03897511,207.18,207.14,13.59559401]
[1756968421854,5.03897511,207.19,207.16,0.66]
[1756968422052,5.03897511,207.2,207.17,0.66]
[1756968422654,37.12,207.22,207.17,0.66]
[1756968422855,5.03897511,207.2,207.17,0.66]
[1756968423451,5.03897511,207.21,207.17,5.48688149]
[1756968423676,0.06,207.21,207.19,13.59559401]
[1756968423880,0.06,207.21,207.2,0.66]
[1756968427661,5.09897511,207.21,207.18,0.66]
[1756968427887,0.75,207.21,207.18,0.66]
[1756968428084,5.03897511,207.2,207.17,13.59559401]
[1756968428264,5.03897511,207.2,207.17,14.25559401]
[1756968430181,5.57602929,207.21,207.15,14.53991715]
[1756968430182,5.03897511,207.19,207.15,14.53991715]
[1756968430574,5.03897511,207.19,207.15,14.25559401]
[1756968430777,5.03897511,207.19,207.16,0.66]
[1756968430983,5.72897511,207.19,207.16,0.66]
[1756968431294,5.72897511,207.18,207.14,13.59559401]
[1756968431469,9.86582084,207.18,207.14,13.59559401]
[1756968431669,0.69,207.17,207.14,14.25559401]
[1756968431886,9.86582084,207.18,207.14,14.25559401]
[1756968432082,10.55582084,207.18,207.14,14.25559401]
[1756968432587,9.86582084,207.18,207.15,0.68]
[1756968433470,3.22557026,207.18,207.15,0.68]
[1756968434891,5.50648776,207.19,207.15,0.68]
[1756968435084,3.22557026,207.18,207.14,13.59559401]
[1756968435281,8.73239834,207.18,207.14,0.68]
[1756968435497,3.22557026,207.17,207.14,0.68]
[1756968436170,3.22557026,207.16,207.12,13.69559401]
[1756968436373,3.22557026,207.16,207.13,0.68]
[1756968436886,8.73257592,207.17,207.13,0.68]
[1756968438580,3.22557026,207.14,207.12,0.1]
[1756968438966,3.90557026,207.14,207.12,0.1]
[1756968439380,3.22557026,207.14,207.12,0.1]
[1756968440905,3.90557026,207.14,207.12,0.1]
[1756968441213,3.22557026,207.13,207.12,0.1]
[1756968442306,3.22557026,207.14,207.12,0.1]
[1756968442494,3.90557026,207.14,207.12,0.1]
[1756968442905,0.68,207.14,207.12,0.1]
[1756968443206,3.22557026,207.13,207.12,0.1]
[1756968443904,3.90557026,207.13,207.12,0.1]
[1756968444785,8.73345612,207.13,207.12,0.1]
[1756968445597,3.22557026,207.13,207.12,0.1]
[1756968446387,3.90557026,207.13,207.12,0.1]
[1756968447814,8.73345612,207.13,207.12,0.1]
[1756968448113,5.50788586,207.13,207.12,0.1]
[1756968448409,3.90557026,207.13,207.12,0.1]
[1756968449294,39.87991715,207.01,206.8,4.83554909]
[1756968449596,3.22557026,206.9,206.83,3.22557026]
[1756968449819,3.22557026,206.92,206.85,13.59559401]
[1756968449989,17.75447067,206.92,206.86,0.68]
[1756968450796,14.52890041,206.92,206.86,5.51413949]
[1756968451002,3.22557026,206.94,206.88,3.22557026]
[1756968451191,3.22557026,206.94,206.89,0.68]
[1756968452008,3.22557026,206.94,206.89,5.51336187]
[1756968452201,18.42746248,206.96,206.9,14.55991715]
[1756968452404,3.22557026,206.94,206.9,14.55991715]
[1756968452610,3.22557026,206.95,206.91,0.68]
[1756968453299,3.22557026,206.94,206.91,0.68]
[1756968453609,3.22557026,206.93,206.9,13.59559401]
[1756968453910,3.22557026,206.93,206.9,0.68]
[1756968454408,3.22557026,206.93,206.91,0.68]
[1756968455520,3.22557026,206.94,206.91,0.68]
[1756968457088,3.22557026,206.92,206.88,13.59559401]
[1756968457313,3.22557026,206.92,206.88,14.27559401]
[1756968458320,3.22557026,206.92,206.88,0.68]
[1756968458492,3.22557026,206.92,206.89,0.68]
[1756968458894,12.89041754,206.93,206.89,0.68]
[1756968459504,3.22557026,206.92,206.89,0.68]
[1756968459800,3.22557026,206.92,206.87,0.68]
[1756968459999,3.22557026,206.92,206.88,0.68]
[1756968460196,9.66484728,206.93,206.86,13.87991715]
[1756968460401,3.22557026,206.92,206.89,0.68]
[1756968460694,4.83209299,206.93,206.87,3.22557026]
[1756968460895,4.8316512,206.97,206.9,0.68]
[1756968461099,3.22557026,206.94,206.9,0.68]
[1756968461698,3.22557026,206.93,206.9,0.68]
[1756968462022,3.22557026,206.93,206.91,0.68]
[1756968462410,3.22557026,206.94,206.91,0.68]
[1756968462800,3.22557026,206.94,206.91,0.67]
[1756968463418,5.41185782,206.96,206.89,13.59559401]
[1756968463615,3.22557026,206.93,206.91,0.67]
[1756968464416,3.22557026,206.95,206.91,0.67]
[1756968464910,8.0572228,206.97,206.92,3.22557026]
[1756968465102,37.72,206.98,206.93,3.89557026]
[1756968465309,40.94557026,206.98,206.93,3.89557026]
[1756968465504,49.58264472,206.98,206.93,3.89557026]
[1756968466215,0.58,206.97,206.93,3.89557026]
[1756968466616,49.00264472,206.98,206.93,3.89557026]
[1756968466815,49.58264472,206.98,206.93,3.89557026]
[1756968467214,3.22557026,206.97,206.93,0.67]
[1756968467419,3.22557026,206.97,206.89,0.67]
[1756968467420,3.22557026,206.96,206.89,0.67]
[1756968467723,3.22557026,206.94,206.88,3.22557026]
[1756968467910,3.22557026,206.94,206.88,3.89557026]
[1756968468223,8.05798079,206.94,206.88,3.89557026]
[1756968468526,8.63767386,206.95,206.89,3.89557026]
[1756968470211,3.22557026,206.94,206.89,3.89557026]
[1756968470414,3.80557026,206.94,206.89,3.89557026]
[1756968471130,8.6379954,206.94,206.89,3.89557026]
[1756968471423,5.41242514,206.94,206.9,3.89557026]
[1756968471620,3.22557026,206.95,206.9,3.22557026]
[1756968471819,3.22557026,206.96,206.91,0.67]
[1756968472018,3.80557026,206.95,206.91,0.67]
[1756968472524,4.83163969,206.97,206.92,3.22557026]
[1756968472724,50.59090636,206.97,206.93,0.67]
[1756968473039,45.75720995,206.97,206.93,0.67]
[1756968474232,42.53163969,206.97,206.93,0.67]
[1756968474434,0.58,206.96,206.92,3.22557026]
[1756968474607,42.53163969,206.97,206.92,3.89557026]
[1756968474808,43.11163969,206.97,206.92,3.89557026]
[1756968475509,0.58,206.96,206.91,3.22557026]
[1756968475739,0.58,206.96,206.91,3.89557026]
[1756968475936,42.53163969,206.97,206.91,3.22557026]
[1756968476116,45.75720995,206.97,206.92,0.67]
[1756968476317,46.33720995,206.97,206.92,0.67]
[1756968476519,46.33720995,206.97,206.9,13.59559401]
[1756968476520,26.0,206.94,206.9,13.59559401]
[1756968476726,0.58,206.93,206.9,13.59559401]
[1756968477017,26.0,206.94,206.89,3.89557026]
[1756968477214,26.0,206.93,206.89,3.89557026]
[1756968478716,26.0,206.93,206.9,0.67]
[1756968478915,30.83259044,206.93,206.9,0.67]
[1756968479120,30.83237096,206.94,206.91,0.67]
[1756968479538,30.83237096,206.94,206.88,0.28432314]
[1756968479539,30.83237096,206.94,206.9,3.22557026]
[1756968479749,31.41237096,206.94,206.9,3.22557026]
[1756968480041,0.58,206.93,206.9,3.25557026]
[1756968480717,0.58,206.93,206.9,0.03]
[1756968480915,4.83278561,206.92,206.9,0.03]